{"text_format":"1","workbook":"xlsx","n_sheets":2,"sheets":["Sheet1","Sheet2"],"not_rendered":{"charts":0,"images":0,"macros":1,"external_links":0,"defined_names":0,"comments":0,"pivot_tables":0},"unopened":[],"bounds":{"document_bytes":16777216,"sheet_cells":100000,"rows_first":2000,"rows_last":500,"rows_between":2000,"halvings":0,"cell_chars":16384,"cell_head_chars":4096},"cells_cut":0,"cells_raw":0,"read":"whole","date_system":"1900"}

{"sheet":"Sheet1","index":0,"n_rows":33,"n_cols":40,"rows_kept":33,"cut":false,"hidden":false,"merged":[[0,12,0,17],[0,25,0,27],[0,21,0,23]]}
[null,null,null,null,null,null,null,null,null,null,null,null,"mois novmbre",null,null,null,null,null,null,null,null,2018,null,null,null,"Année"]
[null,{"$f":"COUNTIF(B4:B33,0)","v":0},0,0,0,0,0,0,0,0,0,0,0,0,0,0,0,0,0,0,0,0,0,0,0,0,0,0,0,0,0,0,{"$f":"SUM(B2:AF2)","v":0}]
["   الطــــــــلاب    التــــــأريــــــخ",{"$f":"IF(COLUMNS($A$1:A1)>DAY(EOMONTH(DATE($V$1,VLOOKUP($M$1,{\"mois janvier\",1;\"mois février\",2;\"mois mars\",3;\"mois avril\",4;\"mois mai\",5;\"mois juin\",6;\"mois juillet\",7;\"mois aout\",8;\"mois septembre\",9;\"mois octobre\",10;\"mois novmbre\",11;\"mois decembre\",12},2,0),1),0)),\"\",DATE($V$1,VLOOKUP($M$1,{\"mois janvier\",1;\"mois février\",2;\"mois mars\",3;\"mois avril\",4;\"mois mai\",5;\"mois juin\",6;\"mois juillet\",7;\"mois aout\",8;\"mois septembre\",9;\"mois octobre\",10;\"mois novmbre\",11;\"mois decembre\",12},2,0),COLUMNS($A$1:A1)))","v":"2018-11-01"},{"$f":"IF(COLUMNS($A$1:B1)>DAY(EOMONTH(DATE($V$1,VLOOKUP($M$1,{\"mois janvier\",1;\"mois février\",2;\"mois mars\",3;\"mois avril\",4;\"mois mai\",5;\"mois juin\",6;\"mois juillet\",7;\"mois aout\",8;\"mois septembre\",9;\"mois octobre\",10;\"mois novmbre\",11;\"mois decembre\",12},2,0),1),0)),\"\",DATE($V$1,VLOOKUP($M$1,{\"mois janvier\",1;\"mois février\",2;\"mois mars\",3;\"mois avril\",4;\"mois mai\",5;\"mois juin\",6;\"mois juillet\",7;\"mois aout\",8;\"mois septembre\",9;\"mois octobre\",10;\"mois novmbre\",11;\"mois decembre\",12},2,0),COLUMNS($A$1:B1)))","v":"2018-11-02"},{"$f":"IF(COLUMNS($A$1:C1)>DAY(EOMONTH(DATE($V$1,VLOOKUP($M$1,{\"mois janvier\",1;\"mois février\",2;\"mois mars\",3;\"mois avril\",4;\"mois mai\",5;\"mois juin\",6;\"mois juillet\",7;\"mois aout\",8;\"mois septembre\",9;\"mois octobre\",10;\"mois novmbre\",11;\"mois decembre\",12},2,0),1),0)),\"\",DATE($V$1,VLOOKUP($M$1,{\"mois janvier\",1;\"mois février\",2;\"mois mars\",3;\"mois avril\",4;\"mois mai\",5;\"mois juin\",6;\"mois juillet\",7;\"mois aout\",8;\"mois septembre\",9;\"mois octobre\",10;\"mois novmbre\",11;\"mois decembre\",12},2,0),COLUMNS($A$1:C1)))","v":"2018-11-03"},{"$f":"IF(COLUMNS($A$1:D1)>DAY(EOMONTH(DATE($V$1,VLOOKUP($M$1,{\"mois janvier\",1;\"mois février\",2;\"mois mars\",3;\"mois avril\",4;\"mois mai\",5;\"mois juin\",6;\"mois juillet\",7;\"mois aout\",8;\"mois septembre\",9;\"mois octobre\",10;\"mois novmbre\",11;\"mois decembre\",12},2,0),1),0)),\"\",DATE($V$1,VLOOKUP($M$1,{\"mois janvier\",1;\"mois février\",2;\"mois mars\",3;\"mois avril\",4;\"mois mai\",5;\"mois juin\",6;\"mois juillet\",7;\"mois aout\",8;\"mois septembre\",9;\"mois octobre\",10;\"mois novmbre\",11;\"mois decembre\",12},2,0),COLUMNS($A$1:D1)))","v":"2018-11-04"},{"$f":"IF(COLUMNS($A$1:E1)>DAY(EOMONTH(DATE($V$1,VLOOKUP($M$1,{\"mois janvier\",1;\"mois février\",2;\"mois mars\",3;\"mois avril\",4;\"mois mai\",5;\"mois juin\",6;\"mois juillet\",7;\"mois aout\",8;\"mois septembre\",9;\"mois octobre\",10;\"mois novmbre\",11;\"mois decembre\",12},2,0),1),0)),\"\",DATE($V$1,VLOOKUP($M$1,{\"mois janvier\",1;\"mois février\",2;\"mois mars\",3;\"mois avril\",4;\"mois mai\",5;\"mois juin\",6;\"mois juillet\",7;\"mois aout\",8;\"mois septembre\",9;\"mois octobre\",10;\"mois novmbre\",11;\"mois decembre\",12},2,0),COLUMNS($A$1:E1)))","v":"2018-11-05"},{"$f":"IF(COLUMNS($A$1:F1)>DAY(EOMONTH(DATE($V$1,VLOOKUP($M$1,{\"mois janvier\",1;\"mois février\",2;\"mois mars\",3;\"mois avril\",4;\"mois mai\",5;\"mois juin\",6;\"mois juillet\",7;\"mois aout\",8;\"mois septembre\",9;\"mois octobre\",10;\"mois novmbre\",11;\"mois decembre\",12},2,0),1),0)),\"\",DATE($V$1,VLOOKUP($M$1,{\"mois janvier\",1;\"mois février\",2;\"mois mars\",3;\"mois avril\",4;\"mois mai\",5;\"mois juin\",6;\"mois juillet\",7;\"mois aout\",8;\"mois septembre\",9;\"mois octobre\",10;\"mois novmbre\",11;\"mois decembre\",12},2,0),COLUMNS($A$1:F1)))","v":"2018-11-06"},{"$f":"IF(COLUMNS($A$1:G1)>DAY(EOMONTH(DATE($V$1,VLOOKUP($M$1,{\"mois janvier\",1;\"mois février\",2;\"mois mars\",3;\"mois avril\",4;\"mois mai\",5;\"mois juin\",6;\"mois juillet\",7;\"mois aout\",8;\"mois septembre\",9;\"mois octobre\",10;\"mois novmbre\",11;\"mois decembre\",12},2,0),1),0)),\"\",DATE($V$1,VLOOKUP($M$1,{\"mois janvier\",1;\"mois février\",2;\"mois mars\",3;\"mois avril\",4;\"mois mai\",5;\"mois juin\",6;\"mois juillet\",7;\"mois aout\",8;\"mois septembre\",9;\"mois octobre\",10;\"mois novmbre\",11;\"mois decembre\",12},2,0),COLUMNS($A$1:G1)))","v":"2018-11-07"},{"$f":"IF(COLUMNS($A$1:H1)>DAY(EOMONTH(DATE($V$1,VLOOKUP($M$1,{\"mois janvier\",1;\"mois février\",2;\"mois mars\",3;\"mois avril\",4;\"mois mai\",5;\"mois juin\",6;\"mois juillet\",7;\"mois aout\",8;\"mois septembre\",9;\"mois octobre\",10;\"mois novmbre\",11;\"mois decembre\",12},2,0),1),0)),\"\",DATE($V$1,VLOOKUP($M$1,{\"mois janvier\",1;\"mois février\",2;\"mois mars\",3;\"mois avril\",4;\"mois mai\",5;\"mois juin\",6;\"mois juillet\",7;\"mois aout\",8;\"mois septembre\",9;\"mois octobre\",10;\"mois novmbre\",11;\"mois decembre\",12},2,0),COLUMNS($A$1:H1)))","v":"2018-11-08"},{"$f":"IF(COLUMNS($A$1:I1)>DAY(EOMONTH(DATE($V$1,VLOOKUP($M$1,{\"mois janvier\",1;\"mois février\",2;\"mois mars\",3;\"mois avril\",4;\"mois mai\",5;\"mois juin\",6;\"mois juillet\",7;\"mois aout\",8;\"mois septembre\",9;\"mois octobre\",10;\"mois novmbre\",11;\"mois decembre\",12},2,0),1),0)),\"\",DATE($V$1,VLOOKUP($M$1,{\"mois janvier\",1;\"mois février\",2;\"mois mars\",3;\"mois avril\",4;\"mois mai\",5;\"mois juin\",6;\"mois juillet\",7;\"mois aout\",8;\"mois septembre\",9;\"mois octobre\",10;\"mois novmbre\",11;\"mois decembre\",12},2,0),COLUMNS($A$1:I1)))","v":"2018-11-09"},{"$f":"IF(COLUMNS($A$1:J1)>DAY(EOMONTH(DATE($V$1,VLOOKUP($M$1,{\"mois janvier\",1;\"mois février\",2;\"mois mars\",3;\"mois avril\",4;\"mois mai\",5;\"mois juin\",6;\"mois juillet\",7;\"mois aout\",8;\"mois septembre\",9;\"mois octobre\",10;\"mois novmbre\",11;\"mois decembre\",12},2,0),1),0)),\"\",DATE($V$1,VLOOKUP($M$1,{\"mois janvier\",1;\"mois février\",2;\"mois mars\",3;\"mois avril\",4;\"mois mai\",5;\"mois juin\",6;\"mois juillet\",7;\"mois aout\",8;\"mois septembre\",9;\"mois octobre\",10;\"mois novmbre\",11;\"mois decembre\",12},2,0),COLUMNS($A$1:J1)))","v":"2018-11-10"},{"$f":"IF(COLUMNS($A$1:K1)>DAY(EOMONTH(DATE($V$1,VLOOKUP($M$1,{\"mois janvier\",1;\"mois février\",2;\"mois mars\",3;\"mois avril\",4;\"mois mai\",5;\"mois juin\",6;\"mois juillet\",7;\"mois aout\",8;\"mois septembre\",9;\"mois octobre\",10;\"mois novmbre\",11;\"mois decembre\",12},2,0),1),0)),\"\",DATE($V$1,VLOOKUP($M$1,{\"mois janvier\",1;\"mois février\",2;\"mois mars\",3;\"mois avril\",4;\"mois mai\",5;\"mois juin\",6;\"mois juillet\",7;\"mois aout\",8;\"mois septembre\",9;\"mois octobre\",10;\"mois novmbre\",11;\"mois decembre\",12},2,0),COLUMNS($A$1:K1)))","v":"2018-11-11"},{"$f":"IF(COLUMNS($A$1:L1)>DAY(EOMONTH(DATE($V$1,VLOOKUP($M$1,{\"mois janvier\",1;\"mois février\",2;\"mois mars\",3;\"mois avril\",4;\"mois mai\",5;\"mois juin\",6;\"mois juillet\",7;\"mois aout\",8;\"mois septembre\",9;\"mois octobre\",10;\"mois novmbre\",11;\"mois decembre\",12},2,0),1),0)),\"\",DATE($V$1,VLOOKUP($M$1,{\"mois janvier\",1;\"mois février\",2;\"mois mars\",3;\"mois avril\",4;\"mois mai\",5;\"mois juin\",6;\"mois juillet\",7;\"mois aout\",8;\"mois septembre\",9;\"mois octobre\",10;\"mois novmbre\",11;\"mois decembre\",12},2,0),COLUMNS($A$1:L1)))","v":"2018-11-12"},{"$f":"IF(COLUMNS($A$1:M1)>DAY(EOMONTH(DATE($V$1,VLOOKUP($M$1,{\"mois janvier\",1;\"mois février\",2;\"mois mars\",3;\"mois avril\",4;\"mois mai\",5;\"mois juin\",6;\"mois juillet\",7;\"mois aout\",8;\"mois septembre\",9;\"mois octobre\",10;\"mois novmbre\",11;\"mois decembre\",12},2,0),1),0)),\"\",DATE($V$1,VLOOKUP($M$1,{\"mois janvier\",1;\"mois février\",2;\"mois mars\",3;\"mois avril\",4;\"mois mai\",5;\"mois juin\",6;\"mois juillet\",7;\"mois aout\",8;\"mois septembre\",9;\"mois octobre\",10;\"mois novmbre\",11;\"mois decembre\",12},2,0),COLUMNS($A$1:M1)))","v":"2018-11-13"},{"$f":"IF(COLUMNS($A$1:N1)>DAY(EOMONTH(DATE($V$1,VLOOKUP($M$1,{\"mois janvier\",1;\"mois février\",2;\"mois mars\",3;\"mois avril\",4;\"mois mai\",5;\"mois juin\",6;\"mois juillet\",7;\"mois aout\",8;\"mois septembre\",9;\"mois octobre\",10;\"mois novmbre\",11;\"mois decembre\",12},2,0),1),0)),\"\",DATE($V$1,VLOOKUP($M$1,{\"mois janvier\",1;\"mois février\",2;\"mois mars\",3;\"mois avril\",4;\"mois mai\",5;\"mois juin\",6;\"mois juillet\",7;\"mois aout\",8;\"mois septembre\",9;\"mois octobre\",10;\"mois novmbre\",11;\"mois decembre\",12},2,0),COLUMNS($A$1:N1)))","v":"2018-11-14"},{"$f":"IF(COLUMNS($A$1:O1)>DAY(EOMONTH(DATE($V$1,VLOOKUP($M$1,{\"mois janvier\",1;\"mois février\",2;\"mois mars\",3;\"mois avril\",4;\"mois mai\",5;\"mois juin\",6;\"mois juillet\",7;\"mois aout\",8;\"mois septembre\",9;\"mois octobre\",10;\"mois novmbre\",11;\"mois decembre\",12},2,0),1),0)),\"\",DATE($V$1,VLOOKUP($M$1,{\"mois janvier\",1;\"mois février\",2;\"mois mars\",3;\"mois avril\",4;\"mois mai\",5;\"mois juin\",6;\"mois juillet\",7;\"mois aout\",8;\"mois septembre\",9;\"mois octobre\",10;\"mois novmbre\",11;\"mois decembre\",12},2,0),COLUMNS($A$1:O1)))","v":"2018-11-15"},{"$f":"IF(COLUMNS($A$1:P1)>DAY(EOMONTH(DATE($V$1,VLOOKUP($M$1,{\"mois janvier\",1;\"mois février\",2;\"mois mars\",3;\"mois avril\",4;\"mois mai\",5;\"mois juin\",6;\"mois juillet\",7;\"mois aout\",8;\"mois septembre\",9;\"mois octobre\",10;\"mois novmbre\",11;\"mois decembre\",12},2,0),1),0)),\"\",DATE($V$1,VLOOKUP($M$1,{\"mois janvier\",1;\"mois février\",2;\"mois mars\",3;\"mois avril\",4;\"mois mai\",5;\"mois juin\",6;\"mois juillet\",7;\"mois aout\",8;\"mois septembre\",9;\"mois octobre\",10;\"mois novmbre\",11;\"mois decembre\",12},2,0),COLUMNS($A$1:P1)))","v":"2018-11-16"},{"$f":"IF(COLUMNS($A$1:Q1)>DAY(EOMONTH(DATE($V$1,VLOOKUP($M$1,{\"mois janvier\",1;\"mois février\",2;\"mois mars\",3;\"mois avril\",4;\"mois mai\",5;\"mois juin\",6;\"mois juillet\",7;\"mois aout\",8;\"mois septembre\",9;\"mois octobre\",10;\"mois novmbre\",11;\"mois decembre\",12},2,0),1),0)),\"\",DATE($V$1,VLOOKUP($M$1,{\"mois janvier\",1;\"mois février\",2;\"mois mars\",3;\"mois avril\",4;\"mois mai\",5;\"mois juin\",6;\"mois juillet\",7;\"mois aout\",8;\"mois septembre\",9;\"mois octobre\",10;\"mois novmbre\",11;\"mois decembre\",12},2,0),COLUMNS($A$1:Q1)))","v":"2018-11-17"},{"$f":"IF(COLUMNS($A$1:R1)>DAY(EOMONTH(DATE($V$1,VLOOKUP($M$1,{\"mois janvier\",1;\"mois février\",2;\"mois mars\",3;\"mois avril\",4;\"mois mai\",5;\"mois juin\",6;\"mois juillet\",7;\"mois aout\",8;\"mois septembre\",9;\"mois octobre\",10;\"mois novmbre\",11;\"mois decembre\",12},2,0),1),0)),\"\",DATE($V$1,VLOOKUP($M$1,{\"mois janvier\",1;\"mois février\",2;\"mois mars\",3;\"mois avril\",4;\"mois mai\",5;\"mois juin\",6;\"mois juillet\",7;\"mois aout\",8;\"mois septembre\",9;\"mois octobre\",10;\"mois novmbre\",11;\"mois decembre\",12},2,0),COLUMNS($A$1:R1)))","v":"2018-11-18"},{"$f":"IF(COLUMNS($A$1:S1)>DAY(EOMONTH(DATE($V$1,VLOOKUP($M$1,{\"mois janvier\",1;\"mois février\",2;\"mois mars\",3;\"mois avril\",4;\"mois mai\",5;\"mois juin\",6;\"mois juillet\",7;\"mois aout\",8;\"mois septembre\",9;\"mois octobre\",10;\"mois novmbre\",11;\"mois decembre\",12},2,0),1),0)),\"\",DATE($V$1,VLOOKUP($M$1,{\"mois janvier\",1;\"mois février\",2;\"mois mars\",3;\"mois avril\",4;\"mois mai\",5;\"mois juin\",6;\"mois juillet\",7;\"mois aout\",8;\"mois septembre\",9;\"mois octobre\",10;\"mois novmbre\",11;\"mois decembre\",12},2,0),COLUMNS($A$1:S1)))","v":"2018-11-19"},{"$f":"IF(COLUMNS($A$1:T1)>DAY(EOMONTH(DATE($V$1,VLOOKUP($M$1,{\"mois janvier\",1;\"mois février\",2;\"mois mars\",3;\"mois avril\",4;\"mois mai\",5;\"mois juin\",6;\"mois juillet\",7;\"mois aout\",8;\"mois septembre\",9;\"mois octobre\",10;\"mois novmbre\",11;\"mois decembre\",12},2,0),1),0)),\"\",DATE($V$1,VLOOKUP($M$1,{\"mois janvier\",1;\"mois février\",2;\"mois mars\",3;\"mois avril\",4;\"mois mai\",5;\"mois juin\",6;\"mois juillet\",7;\"mois aout\",8;\"mois septembre\",9;\"mois octobre\",10;\"mois novmbre\",11;\"mois decembre\",12},2,0),COLUMNS($A$1:T1)))","v":"2018-11-20"},{"$f":"IF(COLUMNS($A$1:U1)>DAY(EOMONTH(DATE($V$1,VLOOKUP($M$1,{\"mois janvier\",1;\"mois février\",2;\"mois mars\",3;\"mois avril\",4;\"mois mai\",5;\"mois juin\",6;\"mois juillet\",7;\"mois aout\",8;\"mois septembre\",9;\"mois octobre\",10;\"mois novmbre\",11;\"mois decembre\",12},2,0),1),0)),\"\",DATE($V$1,VLOOKUP($M$1,{\"mois janvier\",1;\"mois février\",2;\"mois mars\",3;\"mois avril\",4;\"mois mai\",5;\"mois juin\",6;\"mois juillet\",7;\"mois aout\",8;\"mois septembre\",9;\"mois octobre\",10;\"mois novmbre\",11;\"mois decembre\",12},2,0),COLUMNS($A$1:U1)))","v":"2018-11-21"},{"$f":"IF(COLUMNS($A$1:V1)>DAY(EOMONTH(DATE($V$1,VLOOKUP($M$1,{\"mois janvier\",1;\"mois février\",2;\"mois mars\",3;\"mois avril\",4;\"mois mai\",5;\"mois juin\",6;\"mois juillet\",7;\"mois aout\",8;\"mois septembre\",9;\"mois octobre\",10;\"mois novmbre\",11;\"mois decembre\",12},2,0),1),0)),\"\",DATE($V$1,VLOOKUP($M$1,{\"mois janvier\",1;\"mois février\",2;\"mois mars\",3;\"mois avril\",4;\"mois mai\",5;\"mois juin\",6;\"mois juillet\",7;\"mois aout\",8;\"mois septembre\",9;\"mois octobre\",10;\"mois novmbre\",11;\"mois decembre\",12},2,0),COLUMNS($A$1:V1)))","v":"2018-11-22"},{"$f":"IF(COLUMNS($A$1:W1)>DAY(EOMONTH(DATE($V$1,VLOOKUP($M$1,{\"mois janvier\",1;\"mois février\",2;\"mois mars\",3;\"mois avril\",4;\"mois mai\",5;\"mois juin\",6;\"mois juillet\",7;\"mois aout\",8;\"mois septembre\",9;\"mois octobre\",10;\"mois novmbre\",11;\"mois decembre\",12},2,0),1),0)),\"\",DATE($V$1,VLOOKUP($M$1,{\"mois janvier\",1;\"mois février\",2;\"mois mars\",3;\"mois avril\",4;\"mois mai\",5;\"mois juin\",6;\"mois juillet\",7;\"mois aout\",8;\"mois septembre\",9;\"mois octobre\",10;\"mois novmbre\",11;\"mois decembre\",12},2,0),COLUMNS($A$1:W1)))","v":"2018-11-23"},{"$f":"IF(COLUMNS($A$1:X1)>DAY(EOMONTH(DATE($V$1,VLOOKUP($M$1,{\"mois janvier\",1;\"mois février\",2;\"mois mars\",3;\"mois avril\",4;\"mois mai\",5;\"mois juin\",6;\"mois juillet\",7;\"mois aout\",8;\"mois septembre\",9;\"mois octobre\",10;\"mois novmbre\",11;\"mois decembre\",12},2,0),1),0)),\"\",DATE($V$1,VLOOKUP($M$1,{\"mois janvier\",1;\"mois février\",2;\"mois mars\",3;\"mois avril\",4;\"mois mai\",5;\"mois juin\",6;\"mois juillet\",7;\"mois aout\",8;\"mois septembre\",9;\"mois octobre\",10;\"mois novmbre\",11;\"mois decembre\",12},2,0),COLUMNS($A$1:X1)))","v":"2018-11-24"},{"$f":"IF(COLUMNS($A$1:Y1)>DAY(EOMONTH(DATE($V$1,VLOOKUP($M$1,{\"mois janvier\",1;\"mois février\",2;\"mois mars\",3;\"mois avril\",4;\"mois mai\",5;\"mois juin\",6;\"mois juillet\",7;\"mois aout\",8;\"mois septembre\",9;\"mois octobre\",10;\"mois novmbre\",11;\"mois decembre\",12},2,0),1),0)),\"\",DATE($V$1,VLOOKUP($M$1,{\"mois janvier\",1;\"mois février\",2;\"mois mars\",3;\"mois avril\",4;\"mois mai\",5;\"mois juin\",6;\"mois juillet\",7;\"mois aout\",8;\"mois septembre\",9;\"mois octobre\",10;\"mois novmbre\",11;\"mois decembre\",12},2,0),COLUMNS($A$1:Y1)))","v":"2018-11-25"},{"$f":"IF(COLUMNS($A$1:Z1)>DAY(EOMONTH(DATE($V$1,VLOOKUP($M$1,{\"mois janvier\",1;\"mois février\",2;\"mois mars\",3;\"mois avril\",4;\"mois mai\",5;\"mois juin\",6;\"mois juillet\",7;\"mois aout\",8;\"mois septembre\",9;\"mois octobre\",10;\"mois novmbre\",11;\"mois decembre\",12},2,0),1),0)),\"\",DATE($V$1,VLOOKUP($M$1,{\"mois janvier\",1;\"mois février\",2;\"mois mars\",3;\"mois avril\",4;\"mois mai\",5;\"mois juin\",6;\"mois juillet\",7;\"mois aout\",8;\"mois septembre\",9;\"mois octobre\",10;\"mois novmbre\",11;\"mois decembre\",12},2,0),COLUMNS($A$1:Z1)))","v":"2018-11-26"},{"$f":"IF(COLUMNS($A$1:AA1)>DAY(EOMONTH(DATE($V$1,VLOOKUP($M$1,{\"mois janvier\",1;\"mois février\",2;\"mois mars\",3;\"mois avril\",4;\"mois mai\",5;\"mois juin\",6;\"mois juillet\",7;\"mois aout\",8;\"mois septembre\",9;\"mois octobre\",10;\"mois novmbre\",11;\"mois decembre\",12},2,0),1),0)),\"\",DATE($V$1,VLOOKUP($M$1,{\"mois janvier\",1;\"mois février\",2;\"mois mars\",3;\"mois avril\",4;\"mois mai\",5;\"mois juin\",6;\"mois juillet\",7;\"mois aout\",8;\"mois septembre\",9;\"mois octobre\",10;\"mois novmbre\",11;\"mois decembre\",12},2,0),COLUMNS($A$1:AA1)))","v":"2018-11-27"},{"$f":"IF(COLUMNS($A$1:AB1)>DAY(EOMONTH(DATE($V$1,VLOOKUP($M$1,{\"mois janvier\",1;\"mois février\",2;\"mois mars\",3;\"mois avril\",4;\"mois mai\",5;\"mois juin\",6;\"mois juillet\",7;\"mois aout\",8;\"mois septembre\",9;\"mois octobre\",10;\"mois novmbre\",11;\"mois decembre\",12},2,0),1),0)),\"\",DATE($V$1,VLOOKUP($M$1,{\"mois janvier\",1;\"mois février\",2;\"mois mars\",3;\"mois avril\",4;\"mois mai\",5;\"mois juin\",6;\"mois juillet\",7;\"mois aout\",8;\"mois septembre\",9;\"mois octobre\",10;\"mois novmbre\",11;\"mois decembre\",12},2,0),COLUMNS($A$1:AB1)))","v":"2018-11-28"},{"$f":"IF(COLUMNS($A$1:AC1)>DAY(EOMONTH(DATE($V$1,VLOOKUP($M$1,{\"mois janvier\",1;\"mois février\",2;\"mois mars\",3;\"mois avril\",4;\"mois mai\",5;\"mois juin\",6;\"mois juillet\",7;\"mois aout\",8;\"mois septembre\",9;\"mois octobre\",10;\"mois novmbre\",11;\"mois decembre\",12},2,0),1),0)),\"\",DATE($V$1,VLOOKUP($M$1,{\"mois janvier\",1;\"mois février\",2;\"mois mars\",3;\"mois avril\",4;\"mois mai\",5;\"mois juin\",6;\"mois juillet\",7;\"mois aout\",8;\"mois septembre\",9;\"mois octobre\",10;\"mois novmbre\",11;\"mois decembre\",12},2,0),COLUMNS($A$1:AC1)))","v":"2018-11-29"},{"$f":"IF(COLUMNS($A$1:AD1)>DAY(EOMONTH(DATE($V$1,VLOOKUP($M$1,{\"mois janvier\",1;\"mois février\",2;\"mois mars\",3;\"mois avril\",4;\"mois mai\",5;\"mois juin\",6;\"mois juillet\",7;\"mois aout\",8;\"mois septembre\",9;\"mois octobre\",10;\"mois novmbre\",11;\"mois decembre\",12},2,0),1),0)),\"\",DATE($V$1,VLOOKUP($M$1,{\"mois janvier\",1;\"mois février\",2;\"mois mars\",3;\"mois avril\",4;\"mois mai\",5;\"mois juin\",6;\"mois juillet\",7;\"mois aout\",8;\"mois septembre\",9;\"mois octobre\",10;\"mois novmbre\",11;\"mois decembre\",12},2,0),COLUMNS($A$1:AD1)))","v":"2018-11-30"},{"$f":"IF(COLUMNS($A$1:AE1)>DAY(EOMONTH(DATE($V$1,VLOOKUP($M$1,{\"mois janvier\",1;\"mois février\",2;\"mois mars\",3;\"mois avril\",4;\"mois mai\",5;\"mois juin\",6;\"mois juillet\",7;\"mois aout\",8;\"mois septembre\",9;\"mois octobre\",10;\"mois novmbre\",11;\"mois decembre\",12},2,0),1),0)),\"\",DATE($V$1,VLOOKUP($M$1,{\"mois janvier\",1;\"mois février\",2;\"mois mars\",3;\"mois avril\",4;\"mois mai\",5;\"mois juin\",6;\"mois juillet\",7;\"mois aout\",8;\"mois septembre\",9;\"mois octobre\",10;\"mois novmbre\",11;\"mois decembre\",12},2,0),COLUMNS($A$1:AE1)))","v":""},"الغيـــــابــات","الملاحظـــــة"]
["العامل 1",null,null," ",null,null,null,null,null,null,null,null,null,null,null,null,null,null,null,null,null,null,null,null,null,null,null,null,null,null,null,null,{"$f":"COUNTIF(B4:AF4,0)","v":0},{"$f":"IF(AG4>4,\"إنــذار\",\"\")","v":""}]
["العامل 2",null,null,null,null,null,null,null,null,null,null,null,null,null,null,null,null,null,null,null,null,null,null,null,null,null,null,null,null,null,null,null,{"$f":"COUNTIF(B5:AF5,0)","v":0},{"$f":"IF(AG5>4,\"إنــذار\",\"\")","v":""},null,null,null,null,null,"mois janvier"]
["العامل 3",null,null,null,null,null,null,null,null,null,null,null,null,null,null,null,null,null,null,null,null,null,null,null,null,null,null,null,null,null,null,null,0,"",null,null,null,null,null,"mois février"]
["العامل 4",null,null,null,null,null,null,null,null,null,null,null,null,null,null,null,null,null,null,null,null,null,null,null,null,null,null,null,null,null,null,null,0,"",null,null,null,null,null,"mois mars"]
["العامل 5",null,null,null,null,null,null,null,null,null,null,null,null,null,null,null,null,null,null,null,null,null,null,null,null,null,null,null,null,null,null,null,0,"",null,null,null,null,null,"mois avril"]
["العامل 6",null,null,null,null,null,null,null,null,null,null,null,null,null,null,null,null,null,null,null,null,null,null,null,null,null,null,null,null,null,null,null,0,"",null,null,null,null,null,"mois mai"]
["العامل 7",null,null,null,null,null,null,null,null,null,null,null,null,null,null,null,null,null,null,null,null,null,null,null,null,null,null,null,null,null,null,null,0,"",null,null,null,null,null,"mois juin"]
["العامل 8",null,null,null,null,null,null,null,null,null,null,null,null,null,null,null,null,null,null,null,null,null,null,null,null,null,null,null,null,null,null,null,0,"",null,null,null,null,null,"mois juillet"]
["العامل 9",null,null,null,null,null,null,null,null,null,null,null,null,null,null,null,null,null,null,null,null,null,null,null,null,null,null,null,null,null,null,null,0,"",null,null,null,null,null,"mois aout"]
["العامل 10",null,null,null,null,null,null,null,null,null,null,null,null,null,null,null,null,null,null,null,null,null,null,null,null,null,null,null,null,null,null,null,0,"",null,null,null,null,null,"mois septembre"]
["العامل 11",null,null,null,null,null,null,null,null,null,null,null,null,null,null,null,null,null,null,null,null,null,null,null,null,null,null,null,null,null,null,null,0,"",null,null,null,null,null,"mois octobre"]
["العامل 12",null,null,null,null,null,null,null,null,null,null,null,null,null,null,null,null,null,null,null,null,null,null,null,null,null,null,null,null,null,null,null,0,"",null,null,null,null,null,"mois novmbre"]
["العامل 13",null,null,null,null,null,null,null,null,null,null,null,null,null,null,null,null,null,null,null,null,null,null,null,null,null,null,null,null,null,null,null,0,"",null,null,null,null,null,"mois decembre"]
["العامل 14",null,null,null,null,null,null,null,null,null,null,null,null,null,null,null,null,null,null,null,null,null,null,null,null,null,null,null,null,null,null,null,0,""]
["العامل 15",null,null,null,null,null,null,null,null,null,null,null,null,null,null,null,null,null,null,null,null,null,null,null,null,null,null,null,null,null,null,null,0,""]
["العامل 16",null,null,null,null,null,null,null,null,null,null,null,null,null,null,null,null,null,null,null,null,null,null,null,null,null,null,null,null,null,null,null,0,""]
["العامل 17",null,null,null,null,null,null,null,null,null,null,null,null,null,null,null,null,null,null,null,null,null,null,null,null,null,null,null,null,null,null,null,0,""]
["العامل 18",null,null,null,null,null,null,null,null,null,null,null,null,null,null,null,null,null,null,null,null,null,null,null,null,null,null,null,null,null,null,null,0,""]
["العامل 19",null,null,null,null,null,null,null,null,null,null,null,null,null,null,null,null,null,null,null,null,null,null,null,null,null,null,null,null,null,null,null,0,""]
["العامل 20",null,null,null,null,null,null,null,null,null,null,null,null,null,null,null,null,null,null,null,null,null,null,null,null,null,null,null,null,null,null,null,0,""]
["العامل 21",null,null,null,null,null,null,null,null,null,null,null,null,null,null,null,null,null,null,null,null,null,null,null,null,null,null,null,null,null,null,null,0,""]
["العامل 22",null,null,null,null,null,null,null,null,null,null,null,null,null,null,null,null,null,null,null,null,null,null,null,null,null,null,null,null,null,null,null,0,""]
["العامل 23",null,null,null,null,null,null,null,null,null,null,null,null,null,null,null,null,null,null,null,null,null,null,null,null,null,null,null,null,null,null,null,0,""]
["العامل 24",null,null,null,null,null,null,null,null,null,null,null,null,null,null,null,null,null,null,null,null,null,null,null,null,null,null,null,null,null,null,null,0,""]
["العامل 25",null,null,null,null,null,null,null,null,null,null,null,null,null,null,null,null,null,null,null,null,null,null,null,null,null,null,null,null,null,null,null,0,""]
["العامل 26",null,null,null,null,null,null,null,null,null,null,null,null,null,null,null,null,null,null,null,null,null,null,null,null,null,null,null,null,null,null,null,0,""]
["العامل 27",null,null,null,null,null,null,null,null,null,null,null,null,null,null,null,null,null,null,null,null,null,null,null,null,null,null,null,null,null,null,null,0,""]
["العامل 28",null,null,null,null,null,null,null,null,null,null,null,null,null,null,null,null,null,null,null,null,null,null,null,null,null,null,null,null,null,null,null,0,""]
["العامل 29",null,null,null,null,null,null,null,null,null,null,null,null,null,null,null,null,null,null,null,null,null,null,null,null,null,null,null,null,null,null,null,0,""]
["العامل 30",null,null,null,null,null,null,null,null,null,null,null,null,null,null,null,null,null,null,null,null,null,null,null,null,null,null,null,null,null,null,null,0,""]

{"sheet":"Sheet2","index":1,"n_rows":0,"n_cols":0,"rows_kept":0,"cut":false,"hidden":false,"merged":[]}